fUSD/lending_fUSD_20260112
["ID","MTS","AMOUNT","RATE_DAILY","PERIOD"]
[401481263,1768258247831,-150.0,0.00017635,2]
[401481264,1768258247841,-158.11,0.00017639,2]
[401481265,1768258247850,-150.0,0.0001764,2]
[401481266,1768258247860,-6675.57625126,0.0001764,2]
[401481267,1768258247869,-150.0,0.00017646,2]
[401481268,1768258247878,-151.0,0.00017647,2]
[401481269,1768258247887,-553.64373807,0.00017647,2]
[401481270,1768258247897,-150.0,0.00017653,2]
[401481271,1768258247906,-150.0,0.00017659,2]
[401481272,1768258247916,-150.0,0.00017661,2]
[401481273,1768258247926,-150.0,0.00017665,2]
[401481274,1768258247936,-150.0,0.00017673,2]
[401481275,1768258247946,-150.0,0.00017675,2]
[401481276,1768258247956,-150.0,0.00017676,2]
[401481277,1768258247975,-208.0,0.00017679,2]
[401481278,1768258247985,-150.0,0.00017684,2]
[401481279,1768258247995,-150.0,0.00017687,2]
[401481280,1768258248005,-150.0,0.0001769,2]
[401481281,1768258248016,-500.0,0.00017699,2]
[401481282,1768258248026,-150.0,0.00017699,2]
[401481283,1768258248036,-500.0,0.00017699,2]
[401481284,1768258248045,-150.0,0.00017699,2]
[401481285,1768258248055,-150.0,0.00017699,2]
[401481286,1768258248064,-150.0,0.00017699,2]
[401481287,1768258248074,-150.0,0.00017699,2]
[401481288,1768258248083,-150.0,0.00017699,2]
[401481289,1768258248093,-150.0,0.00017699,2]
[401481290,1768258248103,-500.0,0.00017699,2]
[401481291,1768258248113,-150.0,0.00017699,2]
[401481292,1768258248123,-150.0,0.00017705,2]
[401481293,1768258248133,-1000.0,0.00017706,2]
[401481294,1768258248143,-150.0,0.00017707,2]
[401481295,1768258248153,-150.0,0.00017712,2]
[401481296,1768258248162,-150.0,0.00017713,2]
[401481297,1768258248172,-150.0,0.00017714,2]
[401481298,1768258248182,-150.0,0.00017716,2]
[401481299,1768258248192,-150.0,0.00017716,2]
[401481300,1768258248201,-150.0,0.00017721,2]
[401481301,1768258248211,-150.0,0.00017734,2]
[401481302,1768258248221,-150.0,0.00017739,2]
[401481303,1768258248231,-150.0,0.00017743,2]
[401481304,1768258248240,-150.0,0.00017743,2]
[401481305,1768258248250,-150.0,0.00017747,2]
[401481306,1768258248260,-161.85,0.00017748,2]
[401481307,1768258248269,-150.0,0.00017748,2]
[401481308,1768258248279,-150.0,0.00017749,2]
[401481309,1768258248288,-150.0,0.00017752,2]
[401481310,1768258248298,-500.0,0.00017754,2]
[401481311,1768258248307,-150.0,0.00017754,2]
[401481312,1768258248316,-500.0,0.00017754,2]
[401481313,1768258248326,-150.0,0.00017754,2]
[401481314,1768258248336,-150.0,0.00017754,2]
[401481315,1768258248345,-150.0,0.00017754,2]
[401481316,1768258248355,-150.0,0.00017754,2]
[401481317,1768258248364,-150.0,0.00017754,2]
[401481318,1768258248373,-500.0,0.00017754,2]
[401481319,1768258248383,-150.0,0.00017754,2]
[401481320,1768258248392,-150.0,0.00017755,2]
[401481321,1768258248402,-150.0,0.00017764,2]
[401481322,1768258248412,-150.0,0.00017765,2]
[401481323,1768258248421,-150.0,0.00017775,2]
[401481324,1768258248431,-150.0,0.00017779,2]
[401481325,1768258248440,-150.0,0.00017783,2]
[401481326,1768258248449,-150.0,0.00017784,2]
[401481327,1768258248459,-150.0,0.00017791,2]
[401481328,1768258248468,-150.0,0.00017791,2]
[401481329,1768258248478,-150.0,0.00017793,2]
[401481330,1768258248487,-150.0,0.00017795,2]
[401481331,1768258248584,-156.587,0.00017807,2]
[401481332,1768258248593,-174.30171844,0.00017808,2]
[401481333,1768258248603,-500.0,0.00017809,2]
[401481334,1768258248611,-500.0,0.00017809,2]
[401481335,1768258248620,-200.0,0.00017809,2]
[401481336,1768258248629,-200.0,0.00017809,2]
[401481337,1768258248639,-150.0,0.00017809,2]
[401481338,1768258248649,-200.0,0.00017809,2]
[401481339,1768258248658,-200.0,0.00017809,2]
[401481340,1768258248667,-500.0,0.00017809,2]
[401481341,1768258248676,-200.0,0.00017809,2]
[401481342,1768258248686,-150.0,0.00017811,2]
[401481343,1768258248695,-150.0,0.00017811,2]
[401481344,1768258248704,-150.0,0.00017814,2]
[401481345,1768258248714,-150.0,0.00017817,2]
[401481346,1768258248723,-150.0,0.0001782,2]
[401481347,1768258248733,-155.82564,0.0001782,2]
[401481348,1768258248742,-155.82564,0.0001782,2]
[401481349,1768258248752,-155.82564,0.0001782,2]
[401481350,1768258248761,-155.82564,0.0001782,2]
[401481351,1768258248770,-150.0,0.0001782,2]
[401481352,1768258248779,-6513.96310986,0.00017822,2]
[401481353,1768258248789,-10596.3136669,0.00017822,2]
[401481354,1768258248798,-14965.15741761,0.00017822,2]
[401481355,1768258248807,-19364.598,0.00017822,2]
[401481356,1768258248817,-150.0,0.00017823,2]
[401481357,1768258248826,-150.0,0.00017833,2]
[401481358,1768258248835,-150.0,0.00017836,2]
[401481359,1768258248844,-150.0,0.00017842,2]
[401481360,1768258248854,-150.0,0.00017843,2]
[401481361,1768258248863,-150.0,0.00017845,2]
[401481362,1768258248874,-150.0,0.00017852,2]
[401481363,1768258248883,-150.0,0.00017856,2]
[401481364,1768258248893,-200.0,0.00017856,2]
[401481365,1768258248902,-500.0,0.00017863,2]
[401481366,1768258248912,-500.0,0.00017863,2]
[401481367,1768258248922,-150.0,0.00017863,2]
[401481368,1768258248931,-500.0,0.00017863,2]
[401481369,1768258248941,-150.0,0.0001787,2]
[401481370,1768258248950,-150.0,0.00017871,2]
[401481371,1768258248960,-25000.0,0.00017874,3]
[401481372,1768258248972,-150.0,0.00017874,2]
[401481373,1768258248981,-150.0,0.00017874,2]
[401481374,1768258248990,-150.0,0.00017876,2]
[401481375,1768258248999,-150.0,0.00017877,2]
[401481376,1768258249010,-150.0,0.00017882,2]
[401481377,1768258249020,-25000.0,0.00017882,3]
[401481378,1768258249029,-25000.0,0.00017891,3]
[401481379,1768258249039,-150.0,0.00017892,2]
[401481380,1768258249048,-150.0,0.00017896,2]
[401481381,1768258249057,-500.0,0.00017899,2]
[401481382,1768258249066,-151.0937,0.000179,2]
[401481383,1768258249075,-25000.0,0.000179,3]
[401481384,1768258249084,-5800.0,0.000179,2]
[401481385,1768258249093,-260.77231905,0.000179,2]
[401481386,1768258249102,-13170.18869958,0.000179,3]
[401481387,1768258249111,-10723.17950974,0.000179,2]
[401481388,1768258249122,-444.08475736,0.000179,2]
[401481389,1768258249131,-913.79152893,0.000179,2]
[401481390,1768258249141,-2418.0201607,0.000179,2]
[401481391,1768258249150,-2418.02016053,0.000179,2]
[401481392,1768258249159,-2418.02016053,0.000179,2]
[401481393,1768258249168,-168.22848512,0.000179,2]
[401481394,1768258249178,-2418.02016053,0.000179,2]
[401481395,1768258249187,-2418.02016053,0.000179,2]
[401481396,1768258249197,-2418.02016053,0.000179,2]
[401481397,1768258249207,-2418.02016053,0.000179,2]
[401481398,1768258249216,-2941.05537889,0.000179,2]
[401481399,1768258249225,-2418.02016053,0.000179,2]
[401481400,1768258249236,-2418.02016053,0.000179,2]
[401481401,1768258249246,-2418.02016053,0.000179,2]
[401481402,1768258249256,-2418.02016053,0.000179,2]
[401481403,1768258249266,-186.24381303,0.000179,2]
[401481404,1768258249275,-2418.02016053,0.000179,2]
[401481405,1768258249284,-2418.02016053,0.000179,2]
[401481406,1768258249294,-7170.0,0.000179,2]
[401481407,1768258249304,-150.0,0.00017905,2]
[401481408,1768258249314,-150.0,0.00017905,2]
[401481409,1768258249323,-150.0,0.00017907,2]
[401481410,1768258249333,-150.0,0.00017911,2]
[401481411,1768258249342,-150.0,0.00017916,2]
[401481412,1768258249351,-500.0,0.00017918,2]
[401481413,1768258249360,-500.0,0.00017918,2]
[401481414,1768258249369,-219.0,0.00017918,2]
[401481415,1768258249379,-471.9842,0.00017918,2]
[401481416,1768258249388,-150.0,0.00017918,2]
[401481417,1768258249397,-150.0,0.00017922,2]
[401481418,1768258249407,-150.0,0.00017928,2]
[401481419,1768258249416,-150.0,0.00017937,2]
[401481420,1768258249426,-150.0,0.00017938,2]
[401481421,1768258249435,-1000.0,0.00017938,2]
[401481422,1768258249445,-150.0,0.00017941,2]
[401481423,1768258249454,-150.0,0.00017948,2]
[401481424,1768258249463,-150.0,0.00017958,2]
[401481425,1768258249473,-150.0,0.00017959,2]
[401481426,1768258249482,-150.0,0.00017964,2]
[401481427,1768258249491,-150.0,0.00017968,2]
[401481428,1768258249501,-150.0,0.00017969,2]
[401481429,1768258249510,-150.0,0.0001797,2]
[401481430,1768258249520,-500.0,0.00017973,2]
[401481431,1768258249529,-902.39549897,0.00017973,2]
[401481432,1768258249538,-500.0,0.00017973,2]
[401481433,1768258249547,-500.0,0.00017973,2]
[401481434,1768258249556,-515.69548792,0.00017973,2]
[401481435,1768258249565,-500.0,0.00017973,2]
[401481436,1768258249575,-500.0,0.00017973,2]
[401481437,1768258249584,-500.0,0.00017973,2]
[401481438,1768258249594,-500.0,0.00017973,2]
[401481439,1768258249604,-191.10319937,0.00017973,2]
[401481440,1768258249614,-500.0,0.00017973,2]
[401481441,1768258249623,-500.0,0.00017973,2]
[401481442,1768258249632,-500.0,0.00017973,2]
[401481443,1768258249642,-500.0,0.00017973,2]
[401481444,1768258249651,-610.36957715,0.00017973,2]
[401481445,1768258249660,-500.0,0.00017973,2]
[401481446,1768258249670,-500.0,0.00017973,2]
[401481447,1768258249680,-500.0,0.00017973,2]
[401481448,1768258249690,-273.6592917,0.00017973,2]
[401481449,1768258249699,-500.0,0.00017973,2]
[401481450,1768258249709,-500.0,0.00017973,2]
[401481451,1768258249719,-150.0,0.00017973,2]
[401481452,1768258249728,-460.80722915,0.00017973,2]
[401481453,1768258249738,-500.0,0.00017973,2]
[401481454,1768258249747,-500.0,0.00017973,2]
[401481455,1768258249757,-500.0,0.00017973,2]
[401481456,1768258249766,-501.2767774,0.00017973,2]
[401481457,1768258249776,-500.0,0.00017973,2]
[401481458,1768258249785,-500.0,0.00017973,2]
[401481459,1768258249795,-500.0,0.00017973,2]
[401481460,1768258249804,-500.0,0.00017973,2]
[401481461,1768258249814,-500.0,0.00017973,2]
[401481462,1768258249823,-500.0,0.00017973,2]
[401481463,1768258249832,-500.0,0.00017973,2]
[401481464,1768258249841,-500.0,0.00017973,2]
[401481465,1768258249850,-500.0,0.00017973,2]
[401481466,1768258249859,-150.34167383,0.00017973,2]
[401481467,1768258249869,-642.03010417,0.00017973,2]
[401481468,1768258249878,-500.0,0.00017973,2]
[401481469,1768258249888,-162.85500377,0.00017973,2]
[401481470,1768258249897,-500.0,0.00017973,2]
[401481471,1768258249907,-500.0,0.00017973,2]
[401481472,1768258249916,-500.0,0.00017973,2]
[401481473,1768258249926,-500.0,0.00017973,2]
[401481474,1768258249935,-500.0,0.00017973,2]
[401481475,1768258249945,-500.0,0.00017973,2]
[401481476,1768258249954,-500.0,0.00017973,2]
[401481477,1768258249965,-382.22994489,0.00017973,2]
[401481478,1768258249975,-500.0,0.00017973,2]
[401481479,1768258249984,-500.0,0.00017973,2]
[401481480,1768258249994,-500.0,0.00017973,2]
[401481481,1768258250005,-500.0,0.00017973,2]
[401481482,1768258250014,-500.0,0.00017973,2]
[401481483,1768258250024,-150.1,0.00017973,2]
[401481484,1768258250034,-150.51583165,0.00017973,2]
[401481485,1768258250043,-193.4694691,0.00017973,2]
[401481486,1768258250052,-150.0,0.00017974,2]
[401481487,1768258250062,-500.0,0.00017982,2]
[401481488,1768258250071,-415.11604892,0.0001799,2]
[401481489,1768258250080,-415.11604892,0.0001799,2]
[401481490,1768258250090,-500.0,0.00017998,2]
[401481491,1768258250099,-500.0,0.00017998,2]
[401481492,1768258250108,-500.0,0.00017998,2]
[401481493,1768258250118,-500.0,0.00017998,2]
[401481494,1768258250127,-500.0,0.00017998,2]
[401481495,1768258250136,-24803.7823711,0.00017999,2]
[401481496,1768258250146,-10473.849675,0.00017999,2]
[401481497,1768258250155,-876857.0121857,0.00017999,2]
[401481498,1768258250163,-872.5598719,0.00017999,2]
[401481499,1768258250173,-847.57037788,0.00017999,2]
[401481500,1768258250182,-300.0,0.00017999,2]
[401481501,1768258250191,-141778.7513771,0.00017999,2]
[401481502,1768258250200,-2638.246369,0.00017999,2]
[401481503,1768258250209,-76560.6457668,0.00017999,2]
[401481504,1768258250219,-300.0,0.00017999,2]
[401481505,1768258250229,-300.0,0.00017999,2]
[401481506,1768258250238,-249.76041872,0.00017999,2]
[401481507,1768258250248,-500.0,0.00017999,2]
[401481508,1768258250257,-20894.7192561,0.00017999,2]
[401481509,1768258250266,-500.0,0.00017999,2]
[401481510,1768258250275,-500.0,0.00017999,2]
[401481511,1768258250284,-500.0,0.00017999,2]
[401481512,1768258250293,-553.74,0.00017999,2]
[401481513,1768258250303,-300.0,0.00017999,2]
[401481514,1768258250312,-2293.0472043,0.00017999,2]
[401481515,1768258250322,-327554.33702357,0.00018,2]
[401481516,1768258250331,-177.48437396,0.00018,2]
[401481517,1768258250340,-152.17395716,0.00018,2]
[401481518,1768258250350,-226.07731023,0.00018,2]
[401481519,1768258250359,-150.0,0.00018,2]
[401481520,1768258250368,-262.46461576,0.00018,2]
[401481521,1768258250378,-189.94604102,0.00018,2]
[401481522,1768258250387,-150.0,0.00018,2]
[401481523,1768258250396,-285.23983713,0.00018,2]
[401481524,1768258250406,-150.00000001,0.00018,2]
[401481525,1768258250415,-150.0,0.00018,2]
[401481526,1768258250425,-150.0,0.00018,2]
[401481527,1768258250434,-258.8757006,0.00018,2]
[401481528,1768258250444,-150.0,0.00018,2]
[401481529,1768258250454,-150.0,0.00018,2]
[401481530,1768258250464,-1991179.47413637,0.00018,2]
[401481531,1768258250473,-253022.64130431,0.00018,2]
[401481532,1768258250483,-465045.5676747,0.00018,2]
[401481533,1768258250492,-301006.61265101,0.00018,2]
[401481534,1768258251106,-857.81402166,0.00018,2]
[401481535,1768258251416,-310.01,0.0001505,2]
[401481536,1768258251427,-556.81,0.00016356,2]
[401481537,1768258251436,-179.28,0.00016356,2]
[401481538,1768258251445,-467.15,0.00017178,2]
[401481539,1768258251455,-379.91,0.00017178,2]
[401481540,1768258251464,-4821.0,0.00017271,2]
[401481541,1768258251473,-2809.83957396,0.00018,2]
[401481542,1768258251484,-719.2951,0.00018,2]
[401481543,1768258251506,-4974.00970596,0.00018,2]
[401481544,1768258251573,-2418.02016053,0.000179,2]
[401481545,1768258251582,-2174.67178973,0.00018,2]
[401481546,1768258251594,-255.80595542,0.00018,2]
[401481547,1768258251683,-8707.50786273,0.00018,2]
[401481548,1768258251695,-17247.96177942,0.00018,2]
[401481549,1768258251706,-853.41212699,0.00018,2]
[401481550,1768258251717,-6351.32468255,0.00018,2]
[401481551,1768258457749,4999.9999991,0.000202,30]
[401481553,1768258593504,1104.26040629,0.00014011,5]
[401481762,1768259431627,-328.4750411,0.0001345,2]
[401481763,1768259431639,-1046.270152,0.0001345,2]
[401481764,1768259431650,-1865.2548069,0.0001345,2]
[401481765,1768259431660,-188.96599264,0.00013542,2]
[401481766,1768259431669,-540.23,0.00013567,2]
[401481767,1768259431678,-300.0,0.00013584,2]
[401481768,1768259431688,-1200.0,0.00013584,2]
[401481769,1768259431697,-270.0,0.00013584,2]
[401481771,1768259431706,-300.0,0.00013584,2]
[401481773,1768259431715,-6596.00267452,0.00013585,2]
[401481775,1768259431726,-9412.5,0.00013585,2]
[401481779,1768259431761,-761.5885493,0.00013585,2]
[401481782,1768259431779,-3180.49739108,0.00013585,2]
[401481821,1768259437481,-4080.51495798,0.00013585,2]
[401481822,1768259437492,-1346.99999996,0.00013585,2]
[401481823,1768259437503,-1665.12642716,0.00013585,2]
[401481824,1768259437512,-200.0,0.00013642,2]
[401481825,1768259437522,-300.0,0.00013835,2]
[401481826,1768259437531,-157.18356209,0.00013858,2]
[401481827,1768259437540,-28659.03713204,0.00013902,2]
[401481828,1768259437551,-576.55739814,0.00013902,2]
[401481829,1768259437611,-339.85539699,0.00013902,2]
[401481830,1768259437623,-7761.06575798,0.00013902,2]
[401481831,1768259437634,-1413.71687618,0.00013902,2]
[401481832,1768259437644,-7334.21534227,0.00013902,2]
[401481833,1768259437655,-3692.7188788,0.00013902,2]
[401481834,1768259437666,-1503.77349278,0.00013902,2]
[401482051,1768259439719,-948719.05972482,0.00013902,2]
[401482053,1768259439728,-150.0,0.00013903,2]
[401482055,1768259439737,-3393.2867,0.00013904,2]
[401482057,1768259439746,-79989.5309,0.00013904,2]
[401482059,1768259439755,-152.06497503,0.00013904,2]
[401482061,1768259439764,-4057.51473605,0.00013912,2]
[401482063,1768259439774,-252.00661998,0.00013912,2]
[401482065,1768259439783,-12896.12483029,0.00013912,2]
[401482067,1768259439793,-500.0,0.00013966,2]
[401482069,1768259439802,-483.79950639,0.00013992,2]
[401482071,1768259439811,-79082.81422119,0.00014002,2]
[401482073,1768259439820,-500.0,0.00014004,2]
[401482075,1768259439829,-500.0,0.00014004,2]
[401482077,1768259439838,-151.0,0.00014004,2]
[401482079,1768259439848,-500.0,0.00014004,2]
[401482081,1768259439857,-500.0,0.00014004,2]
[401482083,1768259439866,-500.0,0.00014004,2]
[401482085,1768259439875,-151.0,0.00014004,2]
[401482087,1768259439884,-590.74860506,0.00014004,2]
[401482089,1768259439893,-500.0,0.00014004,2]
[401482091,1768259439903,-151.0,0.00014004,2]
[401482093,1768259439911,-500.0,0.00014004,2]
[401482095,1768259439921,-151.0,0.00014004,2]
[401482097,1768259439930,-500.0,0.00014004,2]
[401482099,1768259439939,-151.0,0.00014004,2]
[401482100,1768259439949,-494.32740785,0.00014004,2]
[401482103,1768259439958,-151.0,0.00014004,2]
[401482105,1768259439968,-151.0,0.00014004,2]
[401482107,1768259439977,-151.0,0.00014004,2]
[401482109,1768259439987,-151.0,0.00014004,2]
[401482111,1768259439997,-151.0,0.00014004,2]
[401482114,1768259440007,-200.0,0.00014004,2]
[401482116,1768259440016,-151.0,0.00014004,2]
[401482118,1768259440026,-151.0,0.00014004,2]
[401482120,1768259440035,-151.0,0.00014004,2]
[401482122,1768259440044,-500.0,0.00014004,2]
[401482124,1768259440052,-200.0,0.00014004,2]
[401482126,1768259440062,-209.63270184,0.00014004,2]
[401482128,1768259440071,-500.0,0.00014011,2]
[401482130,1768259440081,-500.0,0.00014011,2]
[401482132,1768259440090,-500.0,0.00014011,2]
[401482134,1768259440100,-500.0,0.00014011,2]
[401482136,1768259440109,-150.99,0.00014011,2]
[401482138,1768259440119,-1534.87,0.00014011,2]
[401482140,1768259440127,-526.37134529,0.00014011,2]
[401482142,1768259440137,-636.58,0.00014012,2]
[401482144,1768259440146,-746.01,0.00014012,2]
[401482146,1768259440156,-999.99,0.00014012,2]
[401482148,1768259440165,-4517.32,0.00014012,2]
[401482150,1768259440174,-87619.6,0.00014012,2]
[401482152,1768259440182,-1198.0,0.00014012,2]
[401482154,1768259440191,-299.99,0.00014012,2]
[401482156,1768259440201,-9999.99,0.00014012,2]
[401482158,1768259440211,-150.99,0.00014012,2]
[401482160,1768259440221,-415.57873066,0.00014012,2]
[401482162,1768259440230,-500.0,0.00014012,2]
[401482164,1768259440239,-1000.0,0.00014112,2]
[401482166,1768259440248,-4057.51473601,0.00014355,2]
[401482168,1768259440257,-12896.12483026,0.00014355,2]
[401482170,1768259440266,-1000.0,0.0001446,2]
[401482172,1768259440276,-500.0,0.00014511,2]
[401482174,1768259440285,-500.0,0.00014511,2]
[401482176,1768259440295,-575.35243908,0.00014511,2]
[401482178,1768259440305,-500.0,0.00014511,2]
[401482180,1768259440318,-500.0,0.00014511,2]
[401482182,1768259440328,-500.0,0.00014511,2]
[401482184,1768259440337,-500.0,0.00014511,2]
[401482186,1768259440347,-500.0,0.00014511,2]
[401482188,1768259440357,-415.57873066,0.0001466,2]
[401482190,1768259440366,-441.23594566,0.00014795,2]
[401482192,1768259440375,-300.0,0.00014795,2]
[401482194,1768259440386,-4057.51473601,0.00014798,2]
[401482196,1768259440396,-12896.12483026,0.00014798,2]
[401482198,1768259440405,-166.66,0.00014814,2]
[401482200,1768259440414,-420.0,0.00014889,2]
[401482202,1768259440424,-1680.0,0.00014943,2]
[401482204,1768259440434,-255.0,0.00015015,2]
[401482206,1768259440444,-209.5625868,0.00015022,2]
[401482208,1768259440453,-163.58,0.00015068,2]
[401482210,1768259440462,-166.66,0.00015126,2]
[401482212,1768259440471,-215.48,0.00015156,2]
[401482214,1768259440480,-195.0,0.00015193,2]
[401482216,1768259440490,-250.0,0.00015193,2]
[401482218,1768259440499,-300.0,0.00015193,2]
[401482220,1768259440508,-600.0,0.00015193,2]
[401482222,1768259440517,-300.0,0.00015193,2]
[401482224,1768259440527,-4057.51473601,0.00015241,2]
[401482226,1768259440536,-12896.12483026,0.00015241,2]
[401482228,1768259440545,-500.0,0.0001526,2]
[401482230,1768259440554,-540.23,0.00015262,2]
[401482232,1768259440563,-415.57873066,0.00015308,2]
[401482234,1768259440571,-166.66,0.00015438,2]
[401482236,1768259440580,-2463.25553366,0.0001564,2]
[401482238,1768259440590,-4057.51473601,0.00015684,2]
[401482240,1768259440599,-12896.12483026,0.00015684,2]
[401482242,1768259440608,-360.17683286,0.00015739,2]
[401482244,1768259440617,-166.66,0.00015749,2]
[401482245,1768259440626,-1000.0,0.00015918,2]
[401482247,1768259440635,-415.57873066,0.00015956,2]
[401482249,1768259440644,-166.66,0.00016061,2]
[401482252,1768259440653,-500.0,0.00016106,2]
[401482253,1768259440663,-4057.51473601,0.00016128,2]
[401482255,1768259440672,-12896.12483026,0.00016128,2]
[401482257,1768259440681,-150.0,0.000162,2]
[401482259,1768259440690,-150.0,0.000162,2]
[401482262,1768259440700,-150.0,0.000162,2]
[401482264,1768259440709,-150.0,0.000162,2]
[401482266,1768259440719,-150.0,0.000162,2]
[401482267,1768259440727,-150.0,0.000162,2]
[401482269,1768259440736,-150.0,0.000162,2]
[401482271,1768259440745,-150.0,0.000162,2]
[401482273,1768259440754,-150.0,0.000162,2]
[401482276,1768259440764,-150.0,0.000162,2]
[401482277,1768259440773,-150.0,0.000162,2]
[401482279,1768259440782,-150.0,0.000162,2]
[401482282,1768259440792,-150.0,0.000162,2]
[401482283,1768259440801,-150.0,0.000162,2]
[401482286,1768259440811,-150.0,0.000162,2]
[401482287,1768259440820,-150.0,0.000162,2]
[401482289,1768259440829,-433.0,0.0001621,2]
[401482291,1768259440838,-150.0,0.00016224,2]
[401482293,1768259440848,-150.0,0.00016227,2]
[401482295,1768259440857,-150.0,0.00016229,2]
[401482297,1768259440866,-150.0,0.0001623,2]
[401482300,1768259440875,-150.0,0.00016233,2]
[401482301,1768259440884,-150.0,0.00016237,2]
[401482303,1768259440893,-150.0,0.00016238,2]
[401482306,1768259440903,-150.0,0.00016247,2]
[401482308,1768259440912,-150.0,0.00016255,2]
[401482310,1768259440921,-150.0,0.00016257,2]
[401482312,1768259440930,-150.0,0.00016259,2]
[401482314,1768259440939,-150.0,0.00016267,2]
[401482315,1768259440948,-1000.0,0.00016267,2]
[401482317,1768259440958,-150.0,0.00016271,2]
[401482319,1768259440968,-500.0,0.00016274,2]
[401482321,1768259440977,-150.0,0.00016275,2]
[401482323,1768259440986,-150.0,0.00016277,2]
[401482325,1768259440995,-150.0,0.00016282,2]
[401482327,1768259441005,-150.0,0.00016286,2]
[401482329,1768259441014,-150.0,0.00016289,2]
[401482332,1768259441023,-150.0,0.0001629,2]
[401482333,1768259441032,-150.0,0.00016295,2]
[401482336,1768259441042,-150.0,0.000163,2]
[401482337,1768259441051,-150.0,0.00016309,2]
[401482339,1768259441060,-150.0,0.00016312,2]
[401482342,1768259441069,-150.0,0.00016312,2]
[401482343,1768259441079,-150.0,0.00016314,2]
[401482345,1768259441088,-150.0,0.00016315,2]
[401482347,1768259441097,-587.0,0.00016318,2]
[401482349,1768259441106,-150.0,0.00016318,2]
[401482352,1768259441116,-150.0,0.00016318,2]
[401482354,1768259441125,-150.0,0.00016333,2]
[401482355,1768259441134,-150.0,0.00016336,2]
[401482357,1768259441143,-150.0,0.00016342,2]
[401482360,1768259441152,-150.0,0.00016343,2]
[401482361,1768259441162,-150.0,0.00016348,2]
[401482363,1768259441171,-150.0,0.0001635,2]
[401482365,1768259441180,-150.0,0.00016353,2]
[401482367,1768259441189,-1113.62,0.00016356,2]
[401482369,1768259441198,-150.0,0.00016364,2]
[401482371,1768259441207,-150.0,0.00016366,2]
[401482373,1768259441216,-150.0,0.00016367,2]
[401482375,1768259441225,-150.0,0.00016371,2]
[401482377,1768259441234,-166.66,0.00016373,2]
[401482379,1768259441243,-150.0,0.00016377,2]
[401482381,1768259441253,-556.81,0.00016378,2]
[401482383,1768259441262,-150.0,0.0001638,2]
[401482385,1768259441271,-150.0,0.00016387,2]
[401482387,1768259441279,-150.0,0.00016389,2]
[401482389,1768259441289,-150.0,0.00016391,2]
[401482391,1768259441298,-150.0,0.00016391,2]
[401482393,1768259441307,-150.0,0.000164,2]
[401482395,1768259441319,-150.0,0.000164,2]
[401482397,1768259441328,-150.0,0.00016407,2]
[401482399,1768259441340,-150.0,0.00016413,2]
[401482401,1768259441350,-150.0,0.00016418,2]
[401482403,1768259441359,-150.0,0.00016425,2]
[401482405,1768259441368,-150.0,0.00016425,2]
[401482407,1768259441378,-150.0,0.00016425,2]
[401482409,1768259441387,-150.0,0.00016425,2]
[401482411,1768259441396,-150.0,0.00016429,2]
[401482413,1768259441405,-150.0,0.0001643,2]
[401482415,1768259441414,-150.0,0.00016433,2]